Cogmind - Beta 13 @@@ ROGUE MODE // 2024.04.16 @ 05:05:21 Player: A Moose Result: Destroyed by G-50 Soldier with Heavy Laser Performance ------------- Evolutions (2) 1000 Regions Visited (5) 1000 Robots Destroyed (40) 200 Value Destroyed (1011) 1011 Prototype IDs (3) 60 Alien Tech Used (0) 0 Bonus (307) 307 TOTAL SCORE: 3578 Bonus ------- Follower Combat Kills 7 Aligned with FarCom 300 Cogmind --------- Core Integrity 0/550 Matter 155/300 Energy 59/100 System Corruption 0% Temperature Cool (27) Movement Rolling (140) Ox4 Location -8/Materials Parts ------- > --- POWER (1) -------- (None) > --- PROPULSION (2) --- Wheel > --- UTILITY (6) ------ High-capacity Storage Unit Advanced Visual Processing Unit Improved Signal Interpreter Advanced Targeting Computer > --- WEAPON (2) ------- Mini Grenade Launcher > --- INVENTORY (20) --- Compact Wheel Compact Wheel Medium Battery (150) High-capacity Battery (250) Compact Matter Pod (0) Improved Signal Interpreter Army-in-a-Box (30/30) Small Laser Advanced Beam Rifle Gauss Rifle Improved Datajack Axe Peak State ------------ > --- POWER ------------ Light Angular Momentum Engine > --- PROPULSION ------- Armored Wheel Armored Wheel > --- UTILITY ---------- High-capacity Storage Unit Signal Interpreter Improved Signal Interpreter Advanced Targeting Computer > --- WEAPON ----------- Beamcaster Missile Launcher > --- INVENTORY -------- Light Nuclear Core Wheel Compact Wheel Compact Wheel Medium Battery High-capacity Battery Army-in-a-Box EM Pulse Gun Missile Launcher Improved Datajack Axe [Rating: 32] Favorites ----------- Power Light Angular Momentum Engine Engine Light Angular Momentum Engine Power Core Light Nuclear Core Propulsion Compact Wheel Wheel Compact Wheel Utility Signal Interpreter Device Improved Terrain Scanner Storage High-capacity Storage Unit Processor Signal Interpreter Weapon EM Pulse Gun Energy Gun EM Pulse Gun Ballistic Gun Gauss Rifle Launcher Missile Launcher Slashing Weapon Mining Claw Special Melee Weapon Improved Datajack Build | -11 -10 -10 -10 -9 -8 ------- Run | Yrd Mat Min Exi Min Mat Slots Evolved 4 | . . . . . 4 Power . | . . . . . . Propulsion . | . . . . . . Utility 4 | . . . . . 4 Weapon . | . . . . . . Parts Attached 41 | 7 2 7 5 2 18 Power 3 | 1 . 1 . . 1 Engine 2 | 1 . 1 . . . Core 1 | . . . . . 1 Reactor . | . . . . . . Propulsion 10 | 2 . 3 1 2 2 Treads . | . . . . . . Leg . | . . . . . . Wheel 10 | 2 . 3 1 2 2 Hover . | . . . . . . Flight . | . . . . . . Utility 8 | 2 1 . 1 . 4 Device 2 | 1 . . . . 1 Storage 2 | 1 . . 1 . . Processor 4 | . 1 . . . 3 Hackware . | . . . . . . Protection . | . . . . . . Artifact . | . . . . . . Weapon 20 | 2 1 3 3 . 11 Energy Gun 10 | 2 1 1 2 . 4 Energy Cannon . | . . . . . . Ballistic Gun 2 | . . . 1 . 1 Ballistic Cannon . | . . . . . . Launcher 5 | . . . . . 5 Special Weapon . | . . . . . . Impact Weapon . | . . . . . . Slashing Weapon 2 | . . 2 . . . Piercing Weapon . | . . . . . . Special Melee Weapon 1 | . . . . . 1 Unidentified Prototypes 2 | . . . 1 . 1 Parts Lost 15 | . 2 1 . . 12 Power 2 | . . . . . 2 Propulsion 3 | . . . . . 3 Utility 3 | . 1 . . . 2 Weapon 7 | . 1 1 . . 5 Highest Loss Streak 6 | . 2 1 . . 6 To Critical Strikes . | . . . . . . Average Slot Usage (%) 89 | . 97 100 94 100 72 Engine 10 | . 14 14 14 14 4 Wheel 24 | . 28 28 28 28 17 Storage 12 | . 14 14 14 14 9 Processor 16 | . 3 14 14 14 23 Energy Gun 16 | . 27 18 16 28 6 Launcher 3 | . . . . . 8 Slashing Weapon 3 | . . 9 6 . . Naked Turns . | . . . . . . Heaviest Build 61 | 15 15 18 56 56 61 Greatest Support 32 | 26 26 32 32 26 24 Greatest Overweight (x) 4 | 1 . . 2 2 4 Average Overweight (x) . | . . . . 2 2 Largest Inventory Capacity 20 | 8 8 8 20 20 20 Average Capacity 14 | 7 8 8 9 20 20 Most Carried 19 | 5 6 8 9 12 19 Average Carried 10 | 2 3 7 7 11 15 Final Capacity 20 | 8 8 8 20 20 20 Final Carried 17 | 4 6 8 9 12 17 Class Distribution -------------------- 55% | Scavenger-Mutant 43% | Mutant Dominant Class ---------------- Mutant | -10/Materials Mutant | -10/Mines Scavenger-Mutant | -10/Exiles Scavenger-Mutant | -9/Mines Scavenger-Mutant | -8/Materials Resources | -11 -10 -10 -10 -9 -8 ----------- Run | Yrd Mat Min Exi Min Mat Matter Collected 766 | 270 15 170 . 58 253 Remotely . | . . . . . . Salvage Created 1291 | 139 214 238 . . 700 Parts 82 | 7 17 12 . . 46 Haulers Intercepted 3 | . . . . . 3 Recyclers Shooed 2 | . . . . . 2 Parts Field Recycled . | . . . . . . Retrieved Matter . | . . . . . . Parts Self-Destructed . | . . . . . . Prevented . | . . . . . . Kills | -11 -10 -10 -10 -9 -8 ------- Run | Yrd Mat Min Exi Min Mat Combat Hostiles Destroyed 20 | . 5 4 . . 11 Melee 1 | . . 1 . . . Guns 10 | . 5 3 . . 2 AOE 8 | . . . . . 8 Classes Destroyed 11 | 2 3 . . . 6 Worker 1 | . . . . . 1 Builder 3 | . . . . . 3 Tunneler 3 | 2 1 . . . . Hauler 3 | . . . . . 3 Recycler 4 | 1 . 1 . . 2 Operator 2 | . . . . . 2 Watcher 4 | . 1 . . . 3 Swarmer 5 | . 3 2 . . . Grunt 13 | . 2 2 . . 9 Specialist 1 | . . . . . 1 Heavy 1 | . . . . . 1 Best Kill Streak 7 | 2 7 2 . . 6 Combat Bots Only 5 | . 5 2 . . 5 Max Kills in Single Turn 3 | 1 1 1 . . 3 Gunslinging . | . . . . . . Exploded 3 | . . . . . 3 Melee 1 | . . 1 . . . Uniques/NPCs Destroyed . | . . . . . . Combat | -11 -10 -10 -10 -9 -8 -------- Run | Yrd Mat Min Exi Min Mat Hostile Shots Fired 137 | . 31 25 . . 81 Missed 36 | . 10 7 . . 19 Damage Taken 1716 | . 216 145 . . 1355 Core 657 | . 58 38 . . 561 Absorbed by Shields . | . . . . . . Core Remaining (%) 80 | 100 . . . 61 . Volleys Fired 73 | 7 15 11 . . 40 Largest 2 | 2 2 2 . . 2 Hottest 111 | 80 80 80 . . 111 Shots Fired 114 | 12 30 13 . . 59 Gun 91 | 12 30 13 . . 36 Cannon . | . . . . . . Launcher 23 | . . . . . 23 Special . | . . . . . . Kinetic 3 | . . . . . 3 Thermal 33 | . . . . . 33 Explosive 23 | . . . . . 23 Electromagnetic 55 | 12 30 13 . . . Robot Hit Streak 14 | 5 4 8 . . 14 Robot Miss Streak 3 | 2 3 2 . . 2 Penetration Max . | . . . . . . Secondary Targets . | . . . . . . Shots Hit Robots 79 | 7 15 15 . . 42 Core Hits 56 | 3 10 5 . . 38 Critical Kills . | . . . . . . Critical Parts Destroyed . | . . . . . . Critical Strikes 5 | . . . . . 5 Burn 5 | . . . . . 5 Melee Attacks 15 | . . 10 . . 5 Impact . | . . . . . . Slashing 10 | . . 10 . . . Piercing . | . . . . . . Sneak Attacks 5 | . . 2 . . 3 Combat Hostiles . | . . . . . . Follow-up Attacks . | . . . . . . Damage Inflicted 3066 | 94 227 277 . . 2468 Guns 959 | 94 200 122 . . 543 Cannons . | . . . . . . Explosions 1952 | . 27 . . . 1925 Melee 155 | . . 155 . . . Ramming . | . . . . . . Kinetic 23 | . . . . . 23 Thermal 711 | . 27 . . . 684 Explosive 1761 | . . . . . 1761 Electromagnetic 416 | 94 200 122 . . . Impact . | . . . . . . Slashing 155 | . . 155 . . . Piercing . | . . . . . . Highest Corruption . | . . . . . . Average Corruption . | . . . . . . Corruption Purged . | . . . . . . Corruption Blocked . | . . . . . . Overload Shots . | . . . . . . Overflow Damage 273 | . . 6 . . 267 Projectiles . | . . . . . . Explosions 267 | . . . . . 267 Melee 6 | . . 6 . . . Knockbacks . | . . . . . . Impact . | . . . . . . Kinetic . | . . . . . . Secondary . | . . . . . . Self-Inflicted Damage 121 | . 4 . . . 117 Shots 8 | . 1 . . . 7 Rammed . | . . . . . . Targets Rammed . | . . . . . . Kicked . | . . . . . . Crushed . | . . . . . . Highest Temperature 333 | 54 192 18 . . 333 Average Temperature 71 | 21 73 10 . . 81 Received Heat Transfer 633 | . 72 12 . . 549 Effects 1 | . . . . . 1 Energy Bleed 1 | . . . . . 1 Siege Activations . | . . . . . . Robots Corrupted . | . . . . . . Combat Hostiles . | . . . . . . Parts Fried 1 | . . 1 . . . Impact Corruptions . | . . . . . . Robots Melted 1 | . . . . . 1 Combat Hostiles 1 | . . . . . 1 Parts Melted . | . . . . . . Heat Transferred 1433 | . 50 . . . 1383 Parts Sabotaged . | . . . . . . Parts Stolen . | . . . . . . Parts Stripped . | . . . . . . Power Chain Reactions 1 | . 1 . . . . Alert | -11 -10 -10 -10 -9 -8 ------- Run | Yrd Mat Min Exi Min Mat Peak Influence 385 | 15 136 169 . . 385 Initial 52 | . 9 52 . . . Average 93 | 4 64 88 . . 159 Maximum Alert Level 1 | . . . . . 1 Low Security (%) 90 | 100 100 100 . 100 76 Level 1 9 | . . . . . 23 Level 2 . | . . . . . . Level 3 . | . . . . . . Level 4 . | . . . . . . Level 5 . | . . . . . . High Security . | . . . . . . Max Security . | . . . . . . Squads Dispatched 3 | . . . . . 3 Investigation . | . . . . . . Extermination . | . . . . . . Reinforcement 3 | . . . . . 3 Assault . | . . . . . . Garrison . | . . . . . . Intercept . | . . . . . . Searches Triggered . | . . . . . . Construction Impeded 1 | . . . . . 1 Haulers Reinforced . | . . . . . . Active Scanning Responses . | . . . . . . Cargo Convoy Interrupts . | . . . . . . Stealth | -11 -10 -10 -10 -9 -8 --------- Run | Yrd Mat Min Exi Min Mat Distress Signals . | . . . . . . Communications Jammed . | . . . . . . Distress Signals . | . . . . . . Times Spotted 30 | . 6 5 . . 19 Peak Tracking Total 7 | . 4 3 . . 7 Tactical Retreats 4 | . . . . . 4 Traps | -11 -10 -10 -10 -9 -8 ------- Run | Yrd Mat Min Exi Min Mat Traps Triggered . | . . . . . . Indirectly . | . . . . . . Trap Hack Attempts 48 | . . . . . 48 Triggered . | . . . . . . Disarmed . | . . . . . . Reprogrammed 6 | . . . . . 6 Reused 4 | . . . . . 4 Traps Extracted . | . . . . . . Installed . | . . . . . . Triggered 4 | . . . . . 4 Machines | -11 -10 -10 -10 -9 -8 ---------- Run | Yrd Mat Min Exi Min Mat Machines Disabled 6 | . . . . . 6 Max in Single Turn 4 | . . . . . 4 Machines Repaired . | . . . . . . Machines Dismantled . | . . . . . . Machines Sabotaged . | . . . . . . Overloaded Fab Kills . | . . . . . . Hacking | -11 -10 -10 -10 -9 -8 --------- Run | Yrd Mat Min Exi Min Mat Machines Accessed 6 | . 3 . 1 . 2 Terminals 4 | . 3 . . . 1 Fabricators . | . . . . . . Repair Stations . | . . . . . . Recycling Units . | . . . . . . Scanalyzers 1 | . . . . . 1 Garrison Access . | . . . . . . Total Hacks 19 | . 9 . 4 . 6 Successful 10 | . 3 . 4 . 3 Failed 9 | . 6 . . . 3 Catastrophic . | . . . . . . Database Lockouts . | . . . . . . Manual 1 | . . . 1 . . Terminals 11 | . 9 . . . 2 Fabricators . | . . . . . . Repair Stations . | . . . . . . Recycling Units . | . . . . . . Scanalyzers 4 | . . . . . 4 Garrison Access . | . . . . . . Terminal Hacks 7 | . 3 . 4 . . Record 4 | . . . 4 . . Robot Analysis 1 | . 1 . . . . Branch Access Points 1 | . 1 . . . . Alert Level 1 | . 1 . . . . Fabricator Hacks . | . . . . . . Repair Station Hacks . | . . . . . . Recycling Unit Hacks . | . . . . . . Scanalyzer 3 | . . . . . 3 Insert Component 2 | . . . . . 2 Analyze 1 | . . . . . 1 Garrison Access Hacks . | . . . . . . Unauthorized Hacks . | . . . . . . Terminals . | . . . . . . Fabricators . | . . . . . . Repair Stations . | . . . . . . Recycling Units . | . . . . . . Scanalyzers . | . . . . . . Garrison Access . | . . . . . . Data Cores Recovered 1 | . . . . . 1 Used . | . . . . . . Hacking Detections 5 | . 3 . . . 2 Full Trace Events . | . . . . . . Feedback Events . | . . . . . . Feedback Blocked . | . . . . . . Robot Schematics Acquired . | . . . . . . Robots Built . | . . . . . . Authchips . | . . . . . . Time . | . . . . . . Total Robot Build Rating . | . . . . . . Part Schematics Acquired 1 | . . . . . 1 Parts Built . | . . . . . . Authchips . | . . . . . . Time . | . . . . . . Total Part Build Rating . | . . . . . . Parts Repaired . | . . . . . . Time . | . . . . . . Parts Recycled . | . . . . . . Recycled Matter . | . . . . . . Retrieved Matter . | . . . . . . Retrieved Components . | . . . . . . Parts Scanalyzed 1 | . . . . . 1 Part Schematics Acquired 1 | . . . . . 1 Parts Damaged . | . . . . . . Bothacking | -11 -10 -10 -10 -9 -8 ------------ Run | Yrd Mat Min Exi Min Mat Used RIF Installer . | . . . . . . Robots Hacked 3 | . . . . . 3 Non-combat 3 | . . . . . 3 Combat . | . . . . . . Robot Hacks Applied 4 | . . . . . 4 parse_system 1 | . . . . . 1 no_distress 2 | . . . . . 2 find_recycling 1 | . . . . . 1 Relay Couplers Released . | . . . . . . Fabnet Peak Effective % . | . . . . . . Robots Rewired . | . . . . . . Allies Hacked . | . . . . . . Hacks Repelled . | . . . . . . Allies | -11 -10 -10 -10 -9 -8 -------- Run | Yrd Mat Min Exi Min Mat Total Allies 2 | . . 2 . . . Largest Group 2 | . . 2 . . . Highest-Rated Group 41 | . . 41 . . . Highest-Rated Ally 31 | . . 31 . . . Total Orders . | . . . . . . Ally Attacks 9 | . . 9 . . . Total Damage 85 | . . 85 . . . Kills 1 | . . 1 . . . Allies Corrupted . | . . . . . . Allies Melted . | . . . . . . Intel | -11 -10 -10 -10 -9 -8 ------- Run | Yrd Mat Min Exi Min Mat Robot Analysis Total 1 | . 1 . . . . Derelict Logs Recovered 2 | . . 1 . 1 . Drone Launches . | . . . . . . Drone Recoveries . | . . . . . . Exploration | -11 -10 -10 -10 -9 -8 ------------- Run | Yrd Mat Min Exi Min Mat Turns Passed 2024 | 85 142 442 318 345 692 Spaces Moved 1503 | 54 97 368 305 280 399 Core 7 | 7 . . . . . Treads . | . . . . . . Legs . | . . . . . . Wheels 1496 | 47 97 368 305 280 399 Hover . | . . . . . . Flight . | . . . . . . Fastest Speed 50 | 50 90 90 90 120 105 Average Speed 107 | 90 90 96 99 120 120 Slowest Speed 140 | 100 90 100 120 120 140 Overloaded Moves . | . . . . . . Propulsion Burnouts . | . . . . . . Robots Hopped . | . . . . . . Cave-ins Triggered . | . . . . . . Exploration Rate (%) 45 | 4 24 80 62 74 27 Regions Visited 5 Branch Regions 3 Pre-discovered Areas . | . . . . . . Known Exits Taken 4 | . 1 1 1 1 . Unknown Exits Taken 1 | 1 . . . . . Scrap Searched 3 | . . 1 . 2 . Spaces Dug . | . . . . . . Terrain Destroyed 195 | . 3 . . . 192 Melee . | . . . . . . Projectile 1 | . . . . . 1 AOE 194 | . 3 . . . 191 Terrain Rammed . | . . . . . . Walls Destroyed . | . . . . . . Machines Disabled . | . . . . . . Actions | -11 -10 -10 -10 -9 -8 --------- Run | Yrd Mat Min Exi Min Mat Total 1785 | 78 121 423 326 288 549 Wait 46 | . 4 17 . 4 21 Move 1498 | 53 96 367 304 279 399 Hop . | . . . . . . Pick Up 46 | 11 4 5 6 3 17 Fast Attach . | . . . . . . Attach 25 | 7 2 1 3 . 12 Detach . | . . . . . . Swap 16 | . . 6 2 2 6 Drop 18 | . . 6 11 . 1 Fire 73 | 7 15 11 . . 40 Melee 15 | . . 10 . . 5 Ram . | . . . . . . Kick . | . . . . . . Crush . | . . . . . . Escape Stasis . | . . . . . . Rewire . | . . . . . . Trap 48 | . . . . . 48 Miscellaneous . | . . . . . . Route ------- -11/Scrapyard -10/Materials (discovered 2 exits: *Min x2) -10/Mines (discovered 3 exits: *Mat x2 / *Exi) -10/Exiles (discovered 2 exits: *Min x2) -9/Mines -8/Materials History --------- Turn | Location | Event 21 | -11/Scrapyard | Discovered new exit (range 16) 86 | -11/Scrapyard | Entered Materials 109 | -10/Materials | Identified exit to Mines 228 | -10/Materials | Entered Mines 235 | -10/Mines | Met a Derelict bent on vengeance 255 | -10/Mines | Discovered new exit (range 11) 315 | -10/Mines | Build established: Mutant 445 | -10/Mines | Discovered new exit (range 4) 447 | -10/Mines | Identified exit to Materials 666 | -10/Mines | Deemed a non-threat by the Exiles lab entrance 666 | -10/Mines | Discovered new exit (range 5) 669 | -10/Mines | Identified exit to Exiles 670 | -10/Mines | Entered Exiles 686 | -10/Exiles | Discovered new exit (range 14) 698 | -10/Exiles | Identified exit to Mines 718 | -10/Exiles | Met 8R-AWN 735 | -10/Exiles | Met EX-HEX 762 | -10/Exiles | Met EX-BIN 775 | -10/Exiles | Aligned with FarCom system 776 | -10/Exiles | Given EX-Vault access code 799 | -10/Exiles | Opened EX-Vault 807 | -10/Exiles | Found Prototype Storage 814 | -10/Exiles | Found Prototype Ballistic Gun 816 | -10/Exiles | Identified AWS/Gauss 838 | -10/Exiles | Build established: Scavenger-Mutant 849 | -10/Exiles | Exiles lab attacked by MAIN.C 874 | -10/Exiles | Found Prototype Device 973 | -10/Exiles | Discovered exit to Mines (range 14) 988 | -10/Exiles | Left Exiles lab with Army-in-a-Box 988 | -10/Exiles | Entered Mines 1179 | -9/Mines | Learned Materials non-interactive machine intel 1308 | -9/Mines | Discovered new exit (range 11) 1320 | -9/Mines | Identified exit to Materials 1333 | -9/Mines | Entered Materials 1333 | -8/Materials | Evolved 4 slots: Utility x4 1334 | -8/Materials | Loaded intel: 40 non-interactive machine locations 1520 | -8/Materials | Identified Army-in-a-Box 1566 | -8/Materials | Build established: Mutant 1734 | -8/Materials | Lost 4 parts (1p1u2w) 1957 | -8/Materials | Core integrity fell below 50% 1994 | -8/Materials | Lost 6 parts (1p2n1u2w) 2016 | -8/Materials | Core integrity fell below 20% 2025 | -8/Materials | Destroyed by G-50 Soldier with Heavy Laser Last Messages --------------- K-01 Serf collects debris. U-05 Engineer builds a Wall. K-01 Serf cleans the Pressure Siphon. K-01 Serf collects debris. U-05 Engineer lays Concrete. U-05 Engineer builds a Wall. K-01 Serf collects debris. K-01 Serf cleans the Pressure Siphon. A-02 Transporter destroyed. Wheel destroyed. Destroyed Wheel. K-01 Serf collects debris. Acquired Prototype Energy Gun. Identified Adv. Beam Rifle. Faulty integration triggers energy drain (-35). Dropped Faulty Adv. Beam Rifle. K-01 Serf collects debris. Acquired Adv. Beam Rifle. K-01 Serf destroyed. Critical hit (Burn: +37). Map ----- +----------------------------------------------------+ | ???????????????????????"""?? """ % ! | | ???????????????????????"""?# " ! % | | ???????????????????????"""?# # | | ???????????????????????????# ! # #### | | ???????????????????????????# ??? # #??# | | ??????????????????????????????????# """ #??? | | ??????????????????????????????"""?# """ #??? | | ??????????????????????????????"""?# """ #??? | | ??????????????????????????????"""?# """ #??? | | ??????????????????????????????????# #??? | | ??????????????????????????????????# #??? | | ??????????????????????????????????# """ #??? | | ????????????????????????????####### """ #??? | | ????????????????????????????# # """ #??? | | ????????????????????????????# """ #??? | | ????????????????????????????# #??? | | ????????????????g???????????# #??? | | ????????????????????????????# ####### | | ????????????????????????????## ##?????########## | | ?????????????????????######### #???????????????? | | ??"""????????????????# # #??????#????????? | | ??"""????????????????# + +??? #????????? | | ??"""????????????????# # # ?????????? | | ?????????"""???#?????##### # "T" ??????????? | | ?????????"""???# ###### # #????????? | | ?????????"""???# t @== g #??????????????? | | ???????????????+ [%[%g ##??????????????? | | ?????????"""???#k [= #???????????????? | | ?????????"""???######## #???????????????? | | ?????????"""??????????##### ## #???????????????? | | ???????????????????????????### #???????????????? | | ?????????????????????????????# #???????????????? | | ?????????????????????????????# #???????????????? | | ?????????????????????????????# #???????????????? | | ????????????????????"""?"""??# #???????????????? | | ????????????????????"""?"""??+ #???????????????? | | ????????????????????"""?"""??# #???????????????? | | ?????????????????????????????# #???????????????? | | ?????????????????????????????# #???????????????? | | ?????????????????????????????? ???????????????? | | ?????????????????????????????? ????????"""?"""? | | ?????????????????????????????? ????????"""?"""? | | ??????????????????????????????####????????"""?"""? | | ?????????????????????????????????????????????????? | | ?????????????????????????????????????????????????? | | ?????????????????????????????????????????????????? | | ?????????????????????????????????????????????????? | | ?????????????????????????????????????????????????? | | ?????????????????????????????????????????????????? | | ?????????????????????????????????????????????????? | +----------------------------------------------------+ Best States ------------- Heat Dissipation 31 Energy Generation 18 Energy Capacity 250 Matter Stores 300 Matter Capacity 300 Sight Range 20 Terrain Scan Range 16 Terrain Scan Density 10 Evasion (%) 42 Targeting Accuracy 8 Item Schematics ----------------- Wheel | -8/Materials | Scanalyzed Robot Schematics ------------------ None Fabricated ------------ Nothing Alien Tech Used ----------------- None Achievements -------------- Hehehe Challenges ------------ None Game ------ Seed LayeredArmorMultitool Manual? 0 Play Time 00:27:06 Cumulative 47.0 hours Start 2024.04.16 @ 04:39:00 End 2024.04.16 @ 05:05:21 Sessions 1 Manual Loads 0 Difficulty Rogue Special Mode None Game No. 52 Rogue 43 Adventurer 9 Explorer 0 Win Type - Total 0 Types 0/0/0/0/0/0/0/0/0 Lore% 31 Gallery% 45 Achievement% 37 Wizard Run 0 Options --------- Layout 1 ASCII 0 Keyboard 0 Movement Numpad Keybinds 0 Fullscreen 1 Font 24/Smallcaps Map View 50x35 Zoom Use 0% Tactical HUD 0 Map Filters NONE Filters NONE Steam 1 RUN: eb870661-4607-4cd7-ac08-0abab7044dd5